bitfinex/quotes_ETHUSD_20211001
["timestamp","ask_amount","ask_price","bid_price","bid_amount"]
[1633081809090,1.0,3116.9,3116.7,0.009]
[1633081809292,6.61235,3117.2,3116.7,0.009]
[1633081809497,6.42035,3117.2,3116.7,0.009]
[1633081809886,7.39864991,3117.2,3116.7,0.72781921]
[1633081810089,8.35509932,3117.2,3116.8,2.03737079]
[1633081810290,7.37679941,3117.2,3116.8,2.04637079]
[1633081810490,7.37679941,3117.2,3116.9,0.009]
[1633081810699,6.42035,3117.2,3116.9,0.009]
[1633081811890,6.42035,3117.2,3116.9,0.99457049]
[1633081812094,6.42035,3117.2,3117.0,2.00734291]
[1633081812296,0.84192822,3117.5,3117.0,0.009]
[1633081812297,4.81302,3117.5,3117.0,0.009]
[1633081812494,4.81302,3117.5,3117.1,0.006]
[1633081812694,4.81302,3117.5,3116.9,0.009]
[1633081812890,15.12665,3117.7,3116.9,0.201]
[1633081813302,15.12665,3117.7,3117.3,1.85348257]
[1633081813494,15.159613,3118.4,3117.4,2.0037024]
[1633081813495,15.0797,3118.4,3117.4,2.0037024]
[1633081813695,15.0797,3118.4,3117.4,2.0097024]
[1633081813892,15.0797,3118.4,3117.5,0.006]
[1633081814093,36.778966,3118.7,3117.9,1.294]
[1633081814296,0.94290097,3118.5,3118.2,1.00179782]
[1633081814492,0.94290097,3118.5,3118.3,1.97124058]
[1633081814695,11.8093,3118.7,3118.3,1.97124058]
[1633081815292,11.8093,3118.7,3118.3,1.96011758]
[1633081815491,0.82823338,3118.8,3118.0,0.003]
[1633081815694,6.41602,3118.6,3118.0,0.003]
[1633081815894,1.03615873,3118.5,3117.9,0.003]
[1633081816090,2.03615873,3118.5,3117.9,0.003]
[1633081816292,2.03615873,3118.5,3117.5,0.006]
[1633081816493,0.80435248,3117.9,3117.5,0.006]
[1633081816892,0.931253,3117.7,3117.5,0.006]
[1633081817095,0.931253,3117.7,3117.2,0.006]
[1633081817296,0.80435248,3117.9,3117.2,0.006]
[1633081817895,3.2087292,3117.8,3117.2,0.006]
[1633081818093,4.81275,3117.7,3117.2,0.006]
[1633081818301,1.03092649,3117.3,3117.2,0.006]
[1633081818492,4.20885,3117.7,3117.2,0.006]
[1633081818692,0.82217337,3117.4,3117.2,0.006]
[1633081818892,4.20885,3117.7,3117.2,0.006]
[1633081819099,4.8133,3117.3,3117.2,0.006]
[1633081819296,4.20885,3117.7,3117.2,0.006]
[1633081819495,1.17215497,3117.6,3117.2,0.006]
[1633081819900,1.92651212,3117.6,3117.2,0.006]
[1633081820095,0.75435715,3117.6,3117.2,0.006]
[1633081820297,4.81322,3117.4,3117.2,0.006]
[1633081820704,1.271913,3117.3,3117.2,0.006]
[1633081821702,2.06400389,3117.3,3117.2,0.006]
[1633081822100,1.192,3117.3,3117.2,0.006]
[1633081822702,1.192,3117.3,3117.2,1.6]
[1633081822901,1.192,3117.3,3116.7,0.19074978]
[1633081822902,2.202,3117.3,3116.7,0.19074978]
[1633081823115,1.192,3117.3,3116.8,0.003]
[1633081823300,0.079913,3117.1,3116.8,0.003]
[1633081823601,0.88208073,3116.9,3116.8,0.003]
[1633081823806,1.07408073,3116.9,3116.8,0.003]
[1633081825200,1.07408073,3116.9,3116.1,1.98499555]
[1633081825400,1.07408073,3116.9,3115.5,2.01914822]
[1633081825603,0.003,3116.5,3115.8,1.63078686]
[1633081825807,0.192,3116.7,3115.8,1.63078686]
[1633081826005,4.81475,3116.4,3115.8,1.63078686]
[1633081826201,0.97815599,3116.3,3115.8,2.60031067]
[1633081826410,0.97815599,3116.3,3115.8,0.96952381]
[1633081826804,1.00033246,3116.4,3115.8,0.96952381]
[1633081827008,0.2953522,3116.2,3115.9,0.09367063]
[1633081830608,0.77727737,3116.5,3115.8,0.96952381]
[1633081831206,4.815,3116.2,3115.8,0.96952381]
[1633081831607,4.815,3116.2,3115.8,2.56952381]
[1633081832007,0.003,3116.5,3115.9,0.00087469]
[1633081832411,0.079913,3116.2,3116.0,0.09368441]
[1633081832610,0.192,3116.1,3116.0,0.09368441]
[1633081833208,2.05044514,3116.1,3116.0,0.09368441]
[1633081833813,6.86711514,3116.1,3116.0,0.09368441]
[1633081834016,19.07821514,3116.1,3116.0,0.09368441]
[1633081834209,14.26154514,3116.1,3115.7,2.68459058]
[1633081834411,1.0,3116.0,3115.7,2.68459058]
[1633081834613,0.192,3115.9,3115.5,0.00987469]
[1633081834810,3.2111466,3115.7,3115.5,0.00987469]
[1633081835011,1.0,3115.6,3115.5,0.00987469]
[1633081835816,4.20733248,3115.7,3115.5,0.00987469]
[1633081836210,1.0177005,3115.6,3115.5,0.00987469]
[1633081836811,12.23499248,3115.7,3115.5,0.00987469]
[1633081838017,1.35697155,3115.6,3115.5,0.00987469]
[1633081838214,2.35697155,3115.6,3115.5,0.00987469]
[1633081839417,1.34237329,3115.6,3115.5,0.00987469]
[1633081840019,1.34237329,3115.6,3115.4,0.006]
[1633081840217,0.192,3115.5,3115.4,0.006]
[1633081840815,5.00907,3115.5,3115.4,0.006]
[1633081841016,6.00907,3115.5,3114.9,0.87719398]
[1633081841217,3.21116,3115.3,3114.9,0.87719398]
[1633081841816,3.21116,3115.3,3114.8,0.006]
[1633081842015,3.21116,3115.3,3114.9,1.63445312]
[1633081842316,3.21116,3115.3,3114.9,2.52419237]
[1633081842517,3.21116,3115.3,3114.9,0.88973925]
[1633081842917,3.21116,3115.3,3115.1,0.91864658]
[1633081843321,3.21116,3115.3,3114.8,0.006]
[1633081843322,8.02756,3115.3,3114.8,0.006]
[1633081843526,8.02756,3115.3,3115.0,0.04656981]
[1633081843527,0.3425721,3115.2,3115.0,0.04656981]
[1633081844316,1.39382851,3115.2,3115.0,0.04656981]
[1633081844917,0.3425721,3115.2,3115.0,0.04656981]
[1633081845316,0.3425721,3115.2,3115.1,6.3]
[1633081845716,0.3425721,3115.2,3115.0,0.04656981]
[1633081846917,4.81694,3115.1,3115.0,0.04656981]
[1633081848736,0.3425721,3115.2,3115.0,0.04656981]
[1633081848920,0.34259199,3115.1,3114.8,0.006]
[1633081849521,0.99279568,3114.9,3114.8,0.006]
[1633081849719,5.15935199,3115.1,3114.8,0.006]
[1633081850322,0.34259199,3115.1,3114.8,0.006]
[1633081850922,5.15943199,3115.1,3114.8,0.006]
[1633081851788,0.80613056,3115.0,3114.8,0.006]
[1633081852192,0.99813056,3115.0,3114.8,0.006]
[1633081852789,1.01863524,3114.9,3114.8,0.006]
[1633081852993,4.81826,3114.9,3114.8,0.006]
[1633081853991,5.74703812,3114.9,3114.8,0.006]
[1633081854592,5.74703812,3114.9,3114.8,0.05250191]
[1633081855193,5.74703812,3114.9,3114.7,0.006]
[1633081855393,0.192,3114.8,3114.1,0.006]
[1633081855592,0.079913,3114.7,3114.1,0.006]
[1633081855791,0.192,3114.6,3114.1,0.006]
[1633081856191,0.91498851,3114.5,3114.1,0.006]
[1633081856398,1.04531858,3114.4,3114.1,0.006]
[1633081856595,0.192,3114.3,3114.1,0.006]
[1633081857194,0.192,3114.3,3113.5,0.004]
[1633081857394,0.78685047,3113.6,3113.5,0.004]
[1633081857596,3.31742415,3113.6,3113.5,0.004]
[1633081857794,0.78685047,3113.6,3113.5,0.004]
[1633081858201,0.78685047,3113.6,3113.2,4.4945426]
[1633081859402,5.60601047,3113.6,3113.2,4.4945426]
[1633081859594,3.21314,3113.5,3113.2,4.4945426]
[1633081859994,3.21314,3113.5,3113.3,0.02285533]
[1633081859995,3.57963951,3113.5,3113.3,0.02285533]
[1633081860592,5.86613108,3113.4,3113.3,0.02285533]
[1633081862000,6.86613108,3113.4,3113.3,0.02285533]
[1633081862394,7.05813108,3113.4,3113.3,0.02285533]
[1633081862793,7.05813108,3113.4,3112.9,0.006]
[1633081862794,3.1,3113.3,3112.9,0.006]
[1633081863000,2.70843299,3113.2,3112.9,0.006]
[1633081863193,0.192,3113.2,3112.9,0.006]
[1633081863398,0.192,3113.2,3112.7,0.006]
[1633081863399,3.21462,3113.1,3112.7,0.006]
[1633081863594,0.079913,3112.9,3112.7,0.006]
[1633081863794,0.192,3112.8,3112.7,0.006]
[1633081863993,6.62084,3112.8,3112.7,0.006]
[1633081864404,9.65620319,3112.8,3112.7,0.006]
[1633081865594,10.0343892,3112.8,3112.7,0.0230072]
[1633081866800,9.03434601,3112.8,3112.7,0.0230072]
[1633081866999,0.37818601,3112.8,3112.7,0.0230072]
[1633081867800,1.17946413,3112.8,3112.7,0.0230072]
[1633081867998,2.07633384,3112.8,3112.7,0.0230072]
[1633081868199,2.07633384,3112.8,3112.4,0.006]
[1633081868399,3.07633384,3112.8,3112.4,0.006]
[1633081868806,2.07633384,3112.8,3112.4,0.006]
[1633081869198,4.82158,3112.7,3112.4,0.006]
[1633081869406,5.82158,3112.7,3112.4,0.006]
[1633081870000,4.82158,3112.7,3112.4,0.006]
[1633081870601,0.37818601,3112.8,3112.4,0.006]
[1633081870799,3.40648,3113.0,3112.4,0.006]
[1633081871003,1.0,3112.9,3112.4,0.006]
[1633081871199,0.38670953,3112.7,3112.4,0.006]
[1633081871400,0.38670953,3112.7,3112.4,0.81597626]
[1633081871599,1.32194969,3112.7,3112.5,2.00272494]
[1633081871799,1.32194969,3112.7,3112.5,0.009]
[1633081872006,0.38670953,3112.7,3112.5,0.009]
[1633081873003,1.32054746,3112.7,3112.5,1.98014546]
[1633081873202,1.32054746,3112.7,3112.5,2.00118527]
[1633081873203,0.38670953,3112.7,3112.5,2.00118527]
[1633081873404,0.38670953,3112.7,3112.5,0.009]
[1633081875007,1.357161,3112.7,3112.5,0.009]
[1633081875405,2.357161,3112.7,3112.5,0.009]
[1633081876203,1.97045147,3112.7,3112.5,0.009]
[1633081876805,2.357161,3112.7,3112.5,0.009]
[1633081877206,1.38670953,3112.7,3112.5,0.009]
[1633081877606,0.38670953,3112.7,3112.5,0.76887362]
[1633081877805,0.38670953,3112.7,3112.5,0.009]
[1633081878206,1.2543783,3112.7,3112.5,0.009]
[1633081879007,2.2543783,3112.7,3112.5,0.009]
[1633081880614,2.2543783,3112.7,3112.4,0.006]
[1633081880615,2.3342913,3112.7,3112.4,0.006]
[1633081881007,10.3342913,3112.7,3112.4,0.006]
[1633081881412,0.84486997,3112.6,3112.4,0.006]
[1633081882007,4.05986997,3112.6,3112.4,0.006]
[1633081882218,10.26913925,3112.6,3112.4,0.006]
[1633081882411,1.0,3112.5,3112.4,0.006]
[1633081884612,7.42843,3112.5,3112.4,0.006]
[1633081887826,7.81523911,3112.5,3112.4,0.006]
[1633081889422,7.81523911,3112.5,3112.3,0.006]
[1633081889423,15.89515211,3112.5,3112.3,0.006]
[1633081890014,6.42963,3112.4,3112.3,0.006]
[1633081890429,8.34044496,3112.4,3112.3,0.006]
[1633081890620,0.91740876,3112.3,3112.2,0.006]
[1633081890829,1.91740876,3112.3,3112.2,0.006]
[1633081891415,1.0,3112.3,3112.2,0.006]
[1633081893021,1.74354784,3112.3,3112.2,0.006]
[1633081893219,2.13041671,3112.3,3112.2,0.006]
[1633081894622,1.13041671,3112.3,3112.2,0.006]
[1633081895425,0.38686887,3112.3,3112.2,0.006]
[1633081895619,1.47153246,3112.3,3112.2,0.006]
[1633081895820,0.38686887,3112.3,3112.2,0.006]
[1633081896026,1.38686887,3112.3,3112.2,0.006]
[1633081897622,1.0,3112.3,3112.2,0.006]
[1633081898026,1.91321777,3112.3,3112.2,0.006]
[1633081898823,1.30008664,3112.3,3112.2,0.006]
[1633081899525,2.30008664,3112.3,3112.2,0.006]
[1633081899924,3.05,3112.2,3112.0,0.009]
[1633081900127,2.30008664,3112.3,3112.0,0.009]
[1633081900726,3.2152367,3112.2,3112.0,0.009]
[1633081900925,1.0,3112.1,3112.0,0.009]
[1633081901924,8.0379467,3112.2,3112.0,0.009]
[1633081902728,4.82271,3112.2,3112.0,0.009]
[1633081904326,5.20963864,3112.2,3112.0,0.009]
[1633081904637,10.8125,3113.1,3112.3,4.65564341]
[1633081904827,10.8125,3113.1,3112.4,2.3860752]
[1633081905132,3.4058327,3113.9,3112.4,2.3860752]
[1633081905133,0.26557594,3114.1,3112.8,0.07334802]
[1633081905338,22.921913,3114.8,3112.9,0.192]
[1633081905527,1.08648926,3114.0,3113.4,5.06979178]
[1633081906126,0.003,3114.0,3113.4,5.06979178]
[1633081906530,4.81911,3113.9,3113.4,0.76979178]
[1633081906930,3.2127,3113.9,3113.4,2.06379178]
[1633081907131,0.98591242,3113.8,3113.4,4.71379178]
[1633081907325,0.98591242,3113.8,3113.3,0.66509397]
[1633081907528,0.98591242,3113.8,3113.3,0.192]
[1633081907726,4.82258,3113.5,3113.3,0.192]
[1633081908343,4.82258,3113.5,3113.4,0.19638969]
[1633081908942,8.03577,3113.5,3113.4,0.19638969]
[1633081909728,8.03577,3113.5,3112.9,2.00368949]
[1633081909936,8.03577,3113.5,3112.9,2.00137656]
[1633081909937,4.81987,3113.4,3112.9,2.00137656]
[1633081910140,3.40913655,3113.5,3112.8,2.69634451]
[1633081911129,8.22870655,3113.5,3112.8,2.69634451]
[1633081911593,7.22870655,3113.5,3112.9,0.52763649]
[1633081911793,7.22870655,3113.5,3112.8,2.81971709]
[1633081911994,5.62217825,3113.5,3112.8,2.81971709]
[1633081912394,4.81971,3113.2,3112.8,1.94694932]
[1633081912609,8.03289,3113.2,3113.0,1.294]
[1633081912796,8.03289,3113.2,3112.8,1.37656803]
[1633081912994,3.2131707,3113.1,3112.8,2.0185247]
[1633081913198,3.2131707,3113.1,3112.9,6.4249]
[1633081913393,4.81976,3113.0,3112.9,6.4249]
[1633081913599,4.81976,3113.0,3112.9,7.01626569]
[1633081913794,4.81976,3113.0,3112.9,8.5236445]
[1633081913994,4.81976,3113.0,3112.9,8.57444982]
[1633081914194,4.81976,3113.0,3112.9,8.40827648]
[1633081914403,4.81976,3113.0,3112.9,8.51966467]
[1633081914798,4.81976,3113.0,3112.9,8.56925718]
[1633081915002,4.81915,3113.4,3113.0,10.03342456]
[1633081915200,6.42544,3114.1,3113.6,6.45689081]
[1633081915401,15.0721707,3115.1,3114.1,1.77311829]
[1633081915599,15.0721707,3115.1,3114.2,2.1518356]
[1633081915799,15.0721707,3115.1,3114.1,1.96511829]
[1633081915998,0.90456863,3114.4,3114.1,1.96511829]
[1633081916200,3.2124953,3114.4,3114.1,1.96511829]
[1633081916397,4.81872,3114.3,3114.1,1.96511829]
[1633081917399,4.81872,3114.3,3114.1,1.77311829]
[1633081917600,1.0685029,3114.2,3114.1,1.77311829]
[1633081918198,4.81872,3114.3,3114.1,1.77311829]
[1633081918401,4.211799,3114.9,3114.2,2.13997215]
[1633081918599,3.211799,3114.9,3114.2,2.52002067]
[1633081918804,4.82081,3114.5,3114.2,2.50220205]
[1633081919006,4.82081,3114.5,3114.2,2.06162161]
[1633081919207,0.003,3114.5,3114.4,4.65]
[1633081919399,0.003,3114.5,3114.3,0.19666297]
[1633081920219,4.82083,3114.5,3114.3,0.19666297]
[1633081920407,0.003,3114.5,3114.3,0.19666297]
[1633081921404,1.003,3114.5,3114.3,0.19666297]
[1633081921604,0.94967126,3114.4,3114.3,0.19666297]
[1633081921901,0.94967126,3114.4,3114.1,1.77311829]
[1633081922101,0.19554856,3114.5,3114.1,1.77311829]
[1633081922503,0.19554856,3114.5,3114.2,0.8098716]
[1633081922704,0.19554856,3114.5,3114.2,2.84443485]
[1633081923102,0.19554856,3114.5,3114.4,3.1]
[1633081923503,0.19554856,3114.5,3114.4,4.394]
[1633081923907,0.19554856,3114.5,3114.4,6.51775883]
[1633081924307,0.19554856,3114.5,3114.4,7.20187073]
[1633081924505,4.856e-05,3114.5,3114.4,7.70975883]
[1633081924712,0.003,3115.0,3114.4,8.28930904]
[1633081924905,0.003,3115.0,3114.9,9.5038238]
[1633081925106,0.003,3115.0,3114.9,9.6958238]
[1633081925309,0.003,3115.0,3114.9,11.79775968]
[1633081925705,0.003,3115.0,3114.9,12.36374995]
[1633081925905,0.003,3115.0,3114.9,11.79775968]
[1633081926109,0.003,3115.0,3114.9,13.69894882]
[1633081926308,0.003,3115.0,3114.9,13.09175968]
[1633081926509,0.003,3115.0,3114.9,13.56331526]
[1633081926713,0.003,3115.5,3114.9,13.09175968]
[1633081926910,0.003,3115.5,3115.4,8.48669293]
[1633081927209,0.003,3115.5,3115.4,4.54341911]
[1633081927414,0.003,3115.5,3115.4,3.23313673]
[1633081927605,0.09890082,3115.5,3115.4,0.192]
[1633081928008,0.09890082,3115.5,3115.0,2.08809769]
[1633081928207,0.09890082,3115.5,3115.0,0.57793513]
[1633081928408,4.91534082,3115.5,3114.9,0.239948]
[1633081928806,4.91534082,3115.5,3114.9,3.16462677]
[1633081928807,2.07596031,3115.4,3114.9,3.16462677]
[1633081929009,2.07596031,3115.4,3114.9,0.77563526]
[1633081929207,2.07596031,3115.4,3114.9,0.239948]
[1633081929610,0.96326985,3115.4,3114.9,0.239948]
[1633081929814,0.91326985,3115.4,3114.9,0.239948]
[1633081930213,0.91326985,3115.4,3114.9,1.15916602]
[1633081930408,3.21409,3115.5,3115.0,0.29311789]
[1633081931012,3.21409,3115.5,3115.0,2.34508035]
[1633081931208,3.21409,3115.5,3115.0,2.35118983]
[1633081931415,3.21409,3115.5,3115.0,0.29311789]
[1633081931611,8.03058,3115.5,3115.0,2.3722957]
[1633081931809,8.03058,3115.5,3115.0,2.83410434]
[1633081932008,3.21409,3115.5,3115.0,2.83410434]
[1633081932607,3.21409,3115.5,3115.0,0.75492653]
[1633081932810,3.21409,3115.5,3115.0,0.92777747]
[1633081933008,0.09598035,3115.4,3115.0,2.12667337]
[1633081933209,0.09598035,3115.4,3115.0,1.6]
[1633081933415,0.09598035,3115.4,3115.0,2.17632172]
[1633081933812,0.94497425,3115.2,3115.0,1.6]
[1633081934014,0.94497425,3115.2,3115.1,6.4249]
[1633081934414,1.21688725,3115.2,3115.1,6.4249]
[1633081934614,7.63971725,3115.2,3115.1,6.4249]
[1633081934810,15.63971725,3115.2,3115.1,6.4249]
[1633081935013,16.63971725,3115.2,3115.1,6.4249]
[1633081935418,4.75,3115.1,3114.3,0.003]
[1633081935616,0.192,3115.0,3114.3,0.003]
[1633081935813,8.0313,3114.7,3114.2,0.003]
[1633081936015,2.11224068,3114.6,3114.2,0.003]
[1633081936214,0.757841,3114.5,3114.2,0.003]
[1633081937013,6.42494,3114.4,3114.2,0.003]
[1633081938617,0.09635824,3114.3,3114.2,0.003]
[1633081940222,4.91492824,3114.3,3114.2,0.003]
[1633081941416,4.81857,3114.3,3114.2,0.003]
[1633081941629,4.81857,3114.3,3114.2,0.29587263]
[1633081942817,4.61857,3114.3,3114.2,0.29587263]
[1633081944017,4.71494813,3114.3,3114.2,0.003]
[1633081947024,4.61857,3114.3,3114.2,0.29587278]
[1633081948824,2.0766265,3114.3,3114.2,0.29587278]
[1633081949028,2.0766265,3114.3,3114.1,1.77311829]
[1633081949625,2.31944102,3114.3,3114.1,1.77311829]
[1633081949838,5.53209772,3114.3,3114.1,1.77311829]
[1633081950830,8.74476772,3114.3,3114.1,1.77311829]
[1633081952439,8.5019532,3114.3,3114.1,1.77311829]
[1633081952630,8.5019532,3114.3,3114.2,0.14642289]
[1633081952829,16.5019532,3114.3,3114.2,0.14642289]
[1633081953032,8.5019532,3114.3,3114.2,0.14642289]
[1633081953292,16.5019532,3114.3,3114.2,0.14642289]
[1633081953632,17.5019532,3114.3,3114.2,0.14642289]
[1633081953830,17.5019532,3114.3,3113.8,0.003]
[1633081953831,6.8,3114.1,3113.8,0.003]
[1633081954039,10.65,3114.2,3113.8,0.003]
[1633081954040,6.579913,3113.9,3113.8,0.003]
[1633081954235,2.52399999,3113.5,3112.8,0.003]
[1633081954432,4.82142,3113.0,3112.7,0.003]
[1633081954633,1.79116112,3112.9,3112.7,0.003]
[1633081954830,1.79116112,3112.9,3112.6,2.48]
[1633081954831,0.192,3112.8,3112.6,2.48]
[1633081955233,0.192,3112.8,3112.2,0.003]
[1633081955234,3.21434,3112.6,3112.2,0.003]
[1633081956230,3.21434,3112.6,3112.2,1.08683369]
[1633081956433,8.03505,3112.6,3112.5,6.80076007]
[1633081956633,8.03505,3112.6,3112.5,5.9]
[1633081956831,8.03505,3112.6,3112.5,5.903]
[1633081957635,8.03505,3112.6,3112.5,0.003]
[1633081957832,16.03505,3112.6,3112.5,0.003]
[1633081958030,16.03505,3112.6,3112.5,0.07276102]
[1633081958433,16.03505,3112.6,3112.5,0.07576102]
[1633081959432,17.03505,3112.6,3112.5,0.07576102]
[1633081960432,17.35175279,3112.6,3112.5,0.003]
[1633081960832,17.35175279,3112.6,3112.2,0.003]
[1633081961035,4.21404,3112.5,3112.2,0.003]
[1633081961233,7.428247,3112.5,3112.2,0.003]
[1633081962035,4.82106,3112.4,3112.2,0.003]
[1633081962436,12.82106,3112.4,3112.2,0.003]
[1633081963436,12.82106,3112.4,3112.3,0.07269286]
[1633081963837,12.82106,3112.4,3112.3,0.07569286]
[1633081965642,13.16654894,3112.4,3112.1,1.14787098]
[1633081965843,1.0,3112.3,3112.1,1.14787098]
[1633081966039,0.192,3112.2,3112.1,1.14787098]
[1633081966242,1.9429919,3112.2,3112.1,1.14787098]
[1633081966438,1.56751765,3112.1,3112.0,0.009]
[1633081966640,6.39011765,3112.1,3112.0,0.009]
[1633081966839,7.39011765,3112.1,3112.0,0.009]
[1633081967043,15.39011765,3112.1,3112.0,0.009]
[1633081967441,15.39011765,3112.1,3111.6,0.006]
[1633081967442,2.8,3112.0,3111.6,0.006]
[1633081967646,16.40011765,3112.1,3111.6,0.006]
[1633081967647,2.70628974,3111.9,3111.6,0.006]
[1633081967840,40.37892902,3112.1,3111.6,0.006]
[1633081968045,8.03849,3111.9,3111.6,0.006]
[1633081968315,18.5968596,3111.9,3111.6,0.006]
[1633081968441,1.0,3111.8,3111.6,0.006]
[1633081971441,1.35334805,3111.8,3111.6,0.006]
[1633081974450,1.0,3111.8,3111.6,0.006]
[1633081976858,4.21572,3111.8,3111.6,0.006]
[1633081977049,4.56908798,3111.8,3111.6,0.006]
[1633081977453,13.10281108,3111.7,3111.4,0.006]
[1633081977653,5.095483,3111.7,3111.4,0.006]
[1633081977854,3.89819668,3111.6,3111.4,0.006]
[1633081978055,0.192,3111.5,3110.3,2.48]
[1633081978255,3.21898,3111.0,3110.4,2.06979496]
[1633081978458,0.192,3110.9,3110.3,2.48]
[1633081978652,4.82402,3110.7,3110.3,2.48]
[1633081978863,3.216195,3110.6,3110.3,2.48]
[1633081979460,1.08272648,3110.5,3110.3,2.48]
[1633081979652,1.08272648,3110.5,3110.3,2.43]
[1633081979653,4.8243,3110.5,3110.3,2.43]
[1633081980054,3.21601,3110.6,3110.4,0.03582735]
[1633081980755,4.82392,3110.5,3110.4,0.03582735]
[1633081981057,3.21601,3110.6,3110.4,0.03582735]
[1633081981058,6.4321878,3110.6,3110.4,0.03582735]
[1633081981254,1.0,3110.5,3110.4,0.03582735]
[1633081981454,2.16718011,3110.5,3110.4,0.03582735]
[1633081981653,1.0,3110.5,3110.4,0.03582735]
[1633081982457,1.0,3110.5,3110.2,2.48]
[1633081982658,0.99271377,3110.4,3110.2,2.48]
[1633081982858,1.35388631,3110.5,3110.2,2.48]
[1633081983065,0.35388631,3110.5,3110.2,2.48]
[1633081983861,0.35388631,3110.5,3110.3,1.486]
[1633081983862,8.63e-05,3110.5,3110.3,1.486]
[1633081984058,8.63e-05,3110.5,3110.4,8.47505473]
[1633081984258,8.63e-05,3110.5,3110.4,15.09705473]
[1633081984857,8.63e-05,3110.5,3110.4,7.94105473]
[1633081985259,8.63e-05,3110.5,3110.4,6.64705473]
[1633081985459,3.21548,3110.8,3110.4,6.622]
[1633081985657,3.21548,3110.8,3110.4,6.83474119]
[1633081986058,3.21548,3110.8,3110.6,1.294]
[1633081986336,6.43407,3111.0,3110.7,7.41179017]
[1633081986337,0.003,3111.0,3110.7,7.41179017]
[1633081986465,0.003,3111.0,3110.7,6.43]
[1633081986673,0.003,3111.0,3110.9,3.37759298]
[1633081986861,0.003,3111.0,3110.9,9.80759298]
[1633081987661,0.003,3111.0,3110.9,7.15759298]
[1633081988060,4.82272,3111.3,3110.9,7.15759298]
[1633081988261,12.71531479,3111.9,3110.9,7.15759298]
[1633081988467,12.71531479,3111.9,3111.0,0.003]
[1633081988468,3.21498,3111.6,3111.0,0.003]
[1633081988663,4.2626836,3111.6,3111.1,6.43]
[1633081988869,7.4775536,3111.6,3111.1,6.43]
[1633081989063,1.0,3111.5,3111.1,6.38]
[1633081989329,4.82255,3111.4,3111.1,6.38]
[1633081989464,4.82255,3111.4,3111.1,5.38]
[1633081989465,1.0,3111.3,3111.1,5.38]
[1633081989862,1.0,3111.4,3111.1,5.38]
[1633081990068,0.99205565,3111.3,3111.1,5.38]
[1633081990464,1.86380013,3111.3,3111.1,5.38]
[1633081990664,4.82364,3111.2,3111.1,5.38]
[1633081992073,6.43087,3111.5,3111.1,5.38]
[1633081992464,6.43087,3111.5,3111.2,0.84463747]
[1633081992665,6.43087,3111.5,3111.3,5.38]
[1633081992866,6.42985,3111.6,3111.3,5.38]
[1633081993064,4.82221,3111.5,3111.3,5.38]
[1633081993467,4.91041407,3111.5,3111.3,5.38]
[1633081994465,0.08820407,3111.5,3111.3,5.38]
[1633081996276,0.08820407,3111.5,3111.4,8.8576174]
[1633081996467,4.82445,3112.0,3111.4,14.2376174]
[1633081996671,4.82445,3112.0,3111.4,14.53901586]
[1633081996865,4.82445,3112.0,3111.4,6.58901586]
[1633081997066,4.82445,3112.0,3111.4,7.20745168]
[1633081997477,4.82445,3112.0,3111.7,0.71776904]
[1633081997667,4.82445,3112.0,3111.8,5.38]
[1633081997869,8.03872,3112.0,3111.8,5.38]
[1633081998471,3.21727,3112.0,3111.8,5.38]
[1633081998868,0.003,3112.0,3111.8,5.38]
[1633081999069,0.08802472,3111.9,3111.8,5.38]
[1633081999274,0.9394244,3111.9,3111.8,5.38]
[1633081999471,0.08802472,3111.9,3111.8,5.38]
[1633081999673,0.08802472,3111.9,3111.8,5.98191741]
[1633082000472,0.08802472,3111.9,3111.8,5.38]
[1633082000874,1.08802472,3111.9,3111.8,5.38]
[1633082001073,0.08802472,3111.9,3111.8,5.38]
[1633082002074,0.003,3112.0,3111.9,0.30152163]
[1633082002273,0.003,3112.0,3111.9,5.68152163]
[1633082003073,1.003,3112.0,3111.9,5.68152163]
[1633082004073,0.003,3112.0,3111.9,5.68152163]
[1633082004481,0.003,3112.0,3111.9,5.38]
[1633082004676,0.09100479,3112.0,3111.9,5.38]
[1633082007476,0.003,3112.0,3111.9,5.68153545]
[1633082007675,0.85705845,3112.0,3111.9,5.68153545]
[1633082008078,1.85705845,3112.0,3111.9,5.68153545]
[1633082008475,2.67425452,3112.0,3111.9,5.68153545]
[1633082008977,0.003,3112.0,3111.9,5.68153545]
[1633082009977,0.003,3112.0,3111.9,5.38]
[1633082010183,0.09100479,3112.0,3111.9,5.38]
[1633082010383,1.09100479,3112.0,3111.9,5.38]
[1633082010579,0.09100479,3112.0,3111.9,5.38]
[1633082010781,1.09100479,3112.0,3111.9,5.38]
[1633082011177,1.96033989,3112.0,3111.9,5.38]
[1633082011780,1.09100479,3112.0,3111.9,5.38]
[1633082012180,0.09100479,3112.0,3111.9,5.38]
[1633082012386,1.09100479,3112.0,3111.9,5.38]
[1633082012984,0.003,3112.0,3111.9,5.68153559]
[1633082013183,1.003,3112.0,3111.9,5.68153559]
[1633082013442,4.82443,3112.0,3111.9,5.68153559]
[1633082013841,5.82443,3112.0,3111.9,5.68153559]
[1633082014243,5.82443,3112.0,3111.1,0.56362583]
[1633082014445,5.82443,3112.0,3111.0,0.003]
[1633082014446,1.0,3111.9,3111.0,0.003]
[1633082014643,4.82293,3111.5,3110.9,0.66229601]
[1633082014843,4.82293,3111.5,3111.0,6.4288]
[1633082015046,5.68538682,3111.5,3111.0,6.94421846]
[1633082015242,4.82293,3111.5,3111.3,0.94695035]
[1633082015442,4.82293,3111.5,3111.4,6.4288]
[1633082015642,5.06196166,3111.5,3111.4,6.4288]
[1633082016651,0.23903166,3111.5,3111.4,6.4288]
[1633082017454,0.23903166,3111.5,3111.4,7.31711905]